[Event "Titled Tuesday Blitz April 4 Early 2023"]
[White "Vidit, Santosh Gujrathi"]
[Black "Krsnik Cohar, Ivan Vihor"]
[WhiteFideId "5029465"]
[BlackFideId "14520044"]
[WhiteElo "2651"]
[BlackElo "2414"]
[Result "1/2-1/2"]
[Round "03"]
[TimeControl "180+2"]
[Date "2023.04.04"]
[WhiteClock "0:01:46"]
[BlackClock "0:00:28"]

1. e4 {[%clk 0:03:00]}  c5 {[%clk 0:02:59]} 2. Nf3 {[%clk 0:03:01]}  g6 {[%clk 0:02:59]} 3. d4 {[%clk 0:03:01]}  cxd4 {[%clk 0:03:00]} 4. Nxd4 {[%clk 0:03:02]}  Nf6 {[%clk 0:02:59]} 5. c4 {[%clk 0:03:02]}  Nxe4 {[%clk 0:02:59]} 6. Bd3 {[%clk 0:02:57]}  Nf6 {[%clk 0:02:57]} 7. O-O {[%clk 0:02:57]}  Bg7 {[%clk 0:02:55]} 8. Re1 {[%clk 0:02:57]}  O-O {[%clk 0:02:55]} 9. Nc3 {[%clk 0:02:57]}  d5 {[%clk 0:02:51]} 10. cxd5 {[%clk 0:02:54]}  Nxd5 {[%clk 0:02:51]} 11. Ndb5 {[%clk 0:02:53]}  Nxc3 {[%clk 0:02:48]} 12. Nxc3 {[%clk 0:02:54]}  Nc6 {[%clk 0:02:08]} 13. Bg5 {[%clk 0:02:54]}  Be6 {[%clk 0:02:00]} 14. Rc1 {[%clk 0:02:54]}  Qb6 {[%clk 0:01:58]} 15. Rc2 {[%clk 0:02:50]}  Nb4 {[%clk 0:01:43]} 16. Be3 {[%clk 0:02:38]}  Qa5 {[%clk 0:01:27]} 17. Rd2 {[%clk 0:02:38]}  Nxd3 {[%clk 0:01:25]} 18. Rxd3 {[%clk 0:02:39]}  Rfd8 {[%clk 0:01:24]} 19. Rxd8+ {[%clk 0:02:37]}  Rxd8 {[%clk 0:01:24]} 20. Qc1 {[%clk 0:02:38]}  b5 {[%clk 0:00:56]} 21. a3 {[%clk 0:02:37]}  a6 {[%clk 0:00:45]} 22. Ne4 {[%clk 0:02:36]}  b4 {[%clk 0:00:43]} 23. Nc5 {[%clk 0:02:32]}  bxa3 {[%clk 0:00:38]} 24. bxa3 {[%clk 0:02:32]}  Bb2 {[%clk 0:00:28]} 25. Qb1 {[%clk 0:02:29]}  Bf5 {[%clk 0:00:26]} 26. Nb7 {[%clk 0:02:30]}  Bxb1 {[%clk 0:00:24]} 27. Nxa5 {[%clk 0:02:29]}  Bc2 {[%clk 0:00:20]} 28. Nc6 {[%clk 0:02:28]}  Rd7 {[%clk 0:00:18]} 29. Bc5 {[%clk 0:02:28]}  e6 {[%clk 0:00:16]} 30. Bb4 {[%clk 0:02:19]}  Rd1 {[%clk 0:00:16]} 31. Rxd1 {[%clk 0:02:17]}  Bxd1 {[%clk 0:00:17]} 32. Kf1 {[%clk 0:02:15]}  Ba4 {[%clk 0:00:17]} 33. Na5 {[%clk 0:02:13]}  f6 {[%clk 0:00:16]} 34. Ke2 {[%clk 0:02:14]}  e5 {[%clk 0:00:17]} 35. Kd3 {[%clk 0:02:14]}  Bb5+ {[%clk 0:00:16]} 36. Ke4 {[%clk 0:02:12]}  Kf7 {[%clk 0:00:13]} 37. Kd5 {[%clk 0:02:13]}  Bf1 {[%clk 0:00:12]} 38. g3 {[%clk 0:02:13]}  Bd4 {[%clk 0:00:10]} 39. f4 {[%clk 0:02:03]}  Bb6 {[%clk 0:00:10]} 40. fxe5 {[%clk 0:01:47]}  fxe5 {[%clk 0:00:10]} 41. Nb3 {[%clk 0:01:44]}  Bc7 {[%clk 0:00:10]} 42. Kc6 {[%clk 0:01:40]}  Bd8 {[%clk 0:00:09]} 43. Nc5 {[%clk 0:01:37]}  Bg2+ {[%clk 0:00:08]} 44. Kd7 {[%clk 0:01:37]}  Bf6 {[%clk 0:00:08]} 45. Nxa6 {[%clk 0:01:35]}  e4 {[%clk 0:00:09]} 46. Nc5 {[%clk 0:01:29]}  e3 {[%clk 0:00:09]} 47. a4 {[%clk 0:01:29]}  e2 {[%clk 0:00:08]} 48. a5 {[%clk 0:01:29]}  Bd4 {[%clk 0:00:07]} 49. Nd3 {[%clk 0:01:27]}  Be4 {[%clk 0:00:07]} 50. Ne1 {[%clk 0:01:25]}  Bg1 {[%clk 0:00:07]} 51. h3 {[%clk 0:01:21]}  h5 {[%clk 0:00:06]} 52. a6 {[%clk 0:01:21]}  Bf2 {[%clk 0:00:06]} 53. g4 {[%clk 0:01:20]}  hxg4 {[%clk 0:00:06]} 54. hxg4 {[%clk 0:01:21]}  Kf6 {[%clk 0:00:05]} 55. Kd6 {[%clk 0:01:19]}  Bxe1 {[%clk 0:00:06]} 56. Bxe1 {[%clk 0:01:18]}  Kg5 {[%clk 0:00:06]} 57. Ke5 {[%clk 0:01:19]}  Bf3 {[%clk 0:00:05]} 58. Kd4 {[%clk 0:01:15]}  Kxg4 {[%clk 0:00:05]} 59. Ke3 {[%clk 0:01:16]}  Ba8 {[%clk 0:00:03]} 60. Kxe2 {[%clk 0:01:16]}  Kf5 {[%clk 0:00:04]} 61. Ke3 {[%clk 0:01:16]}  Ke6 {[%clk 0:00:05]} 62. Kf4 {[%clk 0:01:17]}  Kd7 {[%clk 0:00:06]} 63. Bf2 {[%clk 0:01:17]}  Kc6 {[%clk 0:00:06]} 64. a7 {[%clk 0:01:18]}  Kb7 {[%clk 0:00:07]} 65. Kg5 {[%clk 0:01:19]}  Ka6 {[%clk 0:00:07]} 66. Kxg6 {[%clk 0:01:20]}  Bb7 {[%clk 0:00:07]} 67. Kf6 {[%clk 0:01:21]}  Bc6 {[%clk 0:00:08]} 68. Ke7 {[%clk 0:01:21]}  Bg2 {[%clk 0:00:08]} 69. Kd6 {[%clk 0:01:22]}  Kb7 {[%clk 0:00:08]} 70. Kc5 {[%clk 0:01:23]}  Ka8 {[%clk 0:00:08]} 71. Kd6 {[%clk 0:01:24]}  Bh1 {[%clk 0:00:09]} 72. Ke5 {[%clk 0:01:25]}  Bg2 {[%clk 0:00:09]} 73. Kf4 {[%clk 0:01:26]}  Bh1 {[%clk 0:00:10]} 74. Be3 {[%clk 0:01:27]}  Bb7 {[%clk 0:00:10]} 75. Ke5 {[%clk 0:01:28]}  Bc6 {[%clk 0:00:11]} 76. Kf4 {[%clk 0:01:29]}  Bb7 {[%clk 0:00:12]} 77. Kg3 {[%clk 0:01:30]}  Ba6 {[%clk 0:00:12]} 78. Kf2 {[%clk 0:01:30]}  Bb7 {[%clk 0:00:13]} 79. Ke1 {[%clk 0:01:31]}  Ba6 {[%clk 0:00:14]} 80. Kd2 {[%clk 0:01:32]}  Bb7 {[%clk 0:00:15]} 81. Kc3 {[%clk 0:01:33]}  Ba6 {[%clk 0:00:16]} 82. Kb4 {[%clk 0:01:34]}  Bb7 {[%clk 0:00:17]} 83. Ka5 {[%clk 0:01:35]}  Bh1 {[%clk 0:00:17]} 84. Kb6 {[%clk 0:01:36]}  Bg2 {[%clk 0:00:18]} 85. Bd4 {[%clk 0:01:37]}  Bh1 {[%clk 0:00:19]} 86. Be5 {[%clk 0:01:38]}  Bg2 {[%clk 0:00:20]} 87. Bb8 {[%clk 0:01:39]}  Bh1 {[%clk 0:00:21]} 88. Bc7 {[%clk 0:01:39]}  Bg2 {[%clk 0:00:21]} 89. Kc5 {[%clk 0:01:40]}  Bh1 {[%clk 0:00:22]} 90. Bb6 {[%clk 0:01:41]}  Bg2 {[%clk 0:00:23]} 91. Kd4 {[%clk 0:01:42]}  Bh1 {[%clk 0:00:24]} 92. Ke5 {[%clk 0:01:43]}  Bg2 {[%clk 0:00:24]} 93. Be3 {[%clk 0:01:44]}  Bh1 {[%clk 0:00:25]} 94. Bf2 {[%clk 0:01:43]}  Bb7 {[%clk 0:00:26]} 95. Bb6 {[%clk 0:01:43]}  Ba6 {[%clk 0:00:27]} 96. Bc5 {[%clk 0:01:44]}  Bb7 {[%clk 0:00:27]} 97. Bb6 {[%clk 0:01:44]}  Ba6 {[%clk 0:00:28]} 98. Bc5 {[%clk 0:01:45]}  Bb7 {[%clk 0:00:28]} 99. Bb6 {[%clk 0:01:46]} 1/2-1/2


[Site "https://www.chess.com"]

[Event "Titled Tuesday Blitz April 4 Early 2023"]
[White "Yu, Jason"]
[Black "Vakhlamov, Igor L."]
[WhiteFideId "30907624"]
[BlackFideId "24126748"]
[WhiteElo "2504"]
[BlackElo "2400"]
[Result "0-1"]
[Round "03"]
[TimeControl "180+2"]
[Date "2023.04.04"]
[WhiteClock "0:00:06"]
[BlackClock "0:00:15"]

1. e4 {[%clk 0:03:00]}  c5 {[%clk 0:02:59]} 2. Nf3 {[%clk 0:03:01]}  e6 {[%clk 0:03:00]} 3. d4 {[%clk 0:03:01]}  cxd4 {[%clk 0:03:00]} 4. Nxd4 {[%clk 0:03:02]}  Nf6 {[%clk 0:03:00]} 5. Nc3 {[%clk 0:03:01]}  Nc6 {[%clk 0:03:01]} 6. Be3 {[%clk 0:03:00]}  Bb4 {[%clk 0:02:43]} 7. Nxc6 {[%clk 0:02:37]}  bxc6 {[%clk 0:02:44]} 8. Bd3 {[%clk 0:02:37]}  d5 {[%clk 0:02:36]} 9. exd5 {[%clk 0:02:32]}  cxd5 {[%clk 0:02:36]} 10. O-O {[%clk 0:02:28]}  O-O {[%clk 0:02:35]} 11. Bd4 {[%clk 0:02:26]}  Bb7 {[%clk 0:02:31]} 12. Qe2 {[%clk 0:02:22]}  Re8 {[%clk 0:02:31]} 13. f4 {[%clk 0:02:19]}  a5 {[%clk 0:02:19]} 14. a3 {[%clk 0:02:17]}  Bf8 {[%clk 0:02:15]} 15. Rae1 {[%clk 0:02:07]}  Nd7 {[%clk 0:02:13]} 16. Bb5 {[%clk 0:01:54]}  Qc7 {[%clk 0:02:12]} 17. Qg4 {[%clk 0:01:37]}  Ba6 {[%clk 0:01:58]} 18. Nxd5 {[%clk 0:00:42]}  Qd6 {[%clk 0:01:48]} 19. Bxd7 {[%clk 0:00:39]}  Qxd5 {[%clk 0:01:48]} 20. Bxe8 {[%clk 0:00:38]}  Qxd4+ {[%clk 0:01:48]} 21. Kh1 {[%clk 0:00:39]}  Rxe8 {[%clk 0:01:48]} 22. c3 {[%clk 0:00:34]}  Qd2 {[%clk 0:01:42]} 23. Rg1 {[%clk 0:00:32]}  Qxb2 {[%clk 0:01:42]} 24. f5 {[%clk 0:00:32]}  Bc8 {[%clk 0:01:34]} 25. Qa4 {[%clk 0:00:30]}  Rd8 {[%clk 0:01:23]} 26. Qxa5 {[%clk 0:00:30]}  Rd5 {[%clk 0:01:14]} 27. Qc7 {[%clk 0:00:28]}  Qb7 {[%clk 0:01:08]} 28. Qxb7 {[%clk 0:00:27]}  Bxb7 {[%clk 0:01:08]} 29. fxe6 {[%clk 0:00:27]}  fxe6 {[%clk 0:01:09]} 30. Rxe6 {[%clk 0:00:28]}  Bxa3 {[%clk 0:01:04]} 31. Rge1 {[%clk 0:00:24]}  Rd2 {[%clk 0:01:00]} 32. R6e2 {[%clk 0:00:22]}  Rd3 {[%clk 0:00:59]} 33. Re3 {[%clk 0:00:22]}  Rd7 {[%clk 0:00:57]} 34. c4 {[%clk 0:00:22]}  Bc5 {[%clk 0:00:56]} 35. Re5 {[%clk 0:00:21]}  Rc7 {[%clk 0:00:55]} 36. Rf5 {[%clk 0:00:18]}  g6 {[%clk 0:00:54]} 37. Rfe5 {[%clk 0:00:18]}  Kf7 {[%clk 0:00:52]} 38. Rb1 {[%clk 0:00:18]}  Bd6 {[%clk 0:00:50]} 39. Reb5 {[%clk 0:00:16]}  Be4 {[%clk 0:00:50]} 40. Rc1 {[%clk 0:00:15]}  Bc6 {[%clk 0:00:46]} 41. Rb6 {[%clk 0:00:14]}  Bc5 {[%clk 0:00:46]} 42. Ra6 {[%clk 0:00:15]}  Kg7 {[%clk 0:00:46]} 43. h3 {[%clk 0:00:15]}  Bb7 {[%clk 0:00:44]} 44. Ra5 {[%clk 0:00:15]}  Kh6 {[%clk 0:00:42]} 45. Rb5 {[%clk 0:00:15]}  Ba6 {[%clk 0:00:41]} 46. Ra5 {[%clk 0:00:15]}  Bb7 {[%clk 0:00:42]} 47. Rb5 {[%clk 0:00:16]}  Be4 {[%clk 0:00:42]} 48. Ra5 {[%clk 0:00:16]}  Bd3 {[%clk 0:00:33]} 49. Ra4 {[%clk 0:00:16]}  Kg5 {[%clk 0:00:32]} 50. Rd1 {[%clk 0:00:16]}  Be4 {[%clk 0:00:31]} 51. Re1 {[%clk 0:00:17]}  Kf4 {[%clk 0:00:30]} 52. Rf1+ {[%clk 0:00:15]}  Kg3 {[%clk 0:00:29]} 53. Ra2 {[%clk 0:00:15]}  Rb7 {[%clk 0:00:23]} 54. Rc1 {[%clk 0:00:15]}  Rb3 {[%clk 0:00:20]} 55. Re2 {[%clk 0:00:14]}  Re3 {[%clk 0:00:14]} 56. Rxe3+ {[%clk 0:00:14]}  Bxe3 {[%clk 0:00:15]} 57. Re1 {[%clk 0:00:06]}  Bxg2# {[%clk 0:00:15]} 0-1


[Site "https://www.chess.com"]

[Event "Titled Tuesday Blitz April 4 Early 2023"]
[White "Timofeev, Artyom"]
[Black "Bruedigam, Martin"]
[WhiteFideId "4140419"]
[BlackFideId "24608033"]
[WhiteElo "2586"]
[BlackElo "2331"]
[Result "1/2-1/2"]
[Round "03"]
[TimeControl "180+2"]
[Date "2023.04.04"]
[WhiteClock "0:00:04"]
[BlackClock "0:00:03"]

1. c4 {[%clk 0:03:00]}  e5 {[%clk 0:02:59]} 2. Nc3 {[%clk 0:02:59]}  Bb4 {[%clk 0:02:59]} 3. Nd5 {[%clk 0:02:58]}  a5 {[%clk 0:02:58]} 4. b3 {[%clk 0:02:56]}  c6 {[%clk 0:02:51]} 5. Nxb4 {[%clk 0:02:55]}  axb4 {[%clk 0:02:52]} 6. Bb2 {[%clk 0:02:55]}  Qe7 {[%clk 0:02:51]} 7. Nf3 {[%clk 0:02:52]}  d6 {[%clk 0:02:51]} 8. d3 {[%clk 0:02:47]}  Nf6 {[%clk 0:02:50]} 9. e3 {[%clk 0:02:44]}  O-O {[%clk 0:02:46]} 10. Be2 {[%clk 0:02:44]}  c5 {[%clk 0:02:40]} 11. O-O {[%clk 0:02:43]}  Nc6 {[%clk 0:02:38]} 12. a3 {[%clk 0:02:40]}  bxa3 {[%clk 0:02:34]} 13. Bxa3 {[%clk 0:02:37]}  Bd7 {[%clk 0:02:27]} 14. Bb2 {[%clk 0:02:36]}  Rfb8 {[%clk 0:02:16]} 15. Qd2 {[%clk 0:02:29]}  h6 {[%clk 0:02:14]} 16. h3 {[%clk 0:02:23]}  Qe8 {[%clk 0:02:11]} 17. d4 {[%clk 0:02:08]}  Ne4 {[%clk 0:01:55]} 18. Qd1 {[%clk 0:02:04]}  Rxa1 {[%clk 0:01:49]} 19. Bxa1 {[%clk 0:02:03]}  b6 {[%clk 0:00:38]} 20. Re1 {[%clk 0:01:58]}  Rd8 {[%clk 0:00:16]} 21. Nd2 {[%clk 0:01:45]}  Nxd2 {[%clk 0:00:14]} 22. Qxd2 {[%clk 0:01:45]}  Qe7 {[%clk 0:00:14]} 23. Bf3 {[%clk 0:01:44]}  Nb4 {[%clk 0:00:14]} 24. dxe5 {[%clk 0:01:37]}  dxe5 {[%clk 0:00:15]} 25. Rd1 {[%clk 0:01:36]}  Kf8 {[%clk 0:00:15]} 26. Bg4 {[%clk 0:01:11]}  Ke8 {[%clk 0:00:15]} 27. Bxd7+ {[%clk 0:01:10]}  Rxd7 {[%clk 0:00:15]} 28. Qxd7+ {[%clk 0:01:06]}  Qxd7 {[%clk 0:00:16]} 29. Rxd7 {[%clk 0:01:05]}  Kxd7 {[%clk 0:00:17]} 30. Bxe5 {[%clk 0:01:04]}  g6 {[%clk 0:00:17]} 31. Bc3 {[%clk 0:00:51]}  Nd3 {[%clk 0:00:18]} 32. Bd2 {[%clk 0:00:48]}  Kc6 {[%clk 0:00:14]} 33. Kf1 {[%clk 0:00:47]}  b5 {[%clk 0:00:13]} 34. cxb5+ {[%clk 0:00:43]}  Kxb5 {[%clk 0:00:14]} 35. Ke2 {[%clk 0:00:39]}  c4 {[%clk 0:00:14]} 36. bxc4+ {[%clk 0:00:38]}  Kxc4 {[%clk 0:00:15]} 37. e4 {[%clk 0:00:38]}  h5 {[%clk 0:00:15]} 38. Ke3 {[%clk 0:00:38]}  Ne5 {[%clk 0:00:12]} 39. Bc1 {[%clk 0:00:36]}  g5 {[%clk 0:00:10]} 40. Bb2 {[%clk 0:00:36]}  Ng6 {[%clk 0:00:10]} 41. g3 {[%clk 0:00:35]}  g4 {[%clk 0:00:10]} 42. h4 {[%clk 0:00:35]}  Kc5 {[%clk 0:00:09]} 43. Bf6 {[%clk 0:00:33]}  Kd6 {[%clk 0:00:09]} 44. Bg7 {[%clk 0:00:33]}  Ke6 {[%clk 0:00:09]} 45. f3 {[%clk 0:00:32]}  gxf3 {[%clk 0:00:08]} 46. Kxf3 {[%clk 0:00:32]}  f5 {[%clk 0:00:09]} 47. Bd4 {[%clk 0:00:28]}  fxe4+ {[%clk 0:00:09]} 48. Kxe4 {[%clk 0:00:28]}  Ne7 {[%clk 0:00:04]} 49. Kf4 {[%clk 0:00:28]}  Nf5 {[%clk 0:00:05]} 50. Bc3 {[%clk 0:00:27]}  Nd6 {[%clk 0:00:05]} 51. Bb2 {[%clk 0:00:26]}  Nf7 {[%clk 0:00:05]} 52. Ba1 {[%clk 0:00:25]}  Nd6 {[%clk 0:00:05]} 53. Kg5 {[%clk 0:00:25]}  Ne4+ {[%clk 0:00:05]} 54. Kf4 {[%clk 0:00:25]}  Nd6 {[%clk 0:00:06]} 55. Bg7 {[%clk 0:00:24]}  Nf5 {[%clk 0:00:06]} 56. Bb2 {[%clk 0:00:23]}  Nd6 {[%clk 0:00:05]} 57. Bd4 {[%clk 0:00:22]}  Kf7 {[%clk 0:00:05]} 58. Be5 {[%clk 0:00:21]}  Nc4 {[%clk 0:00:04]} 59. Kf5 {[%clk 0:00:20]}  Ne3+ {[%clk 0:00:03]} 60. Kg5 {[%clk 0:00:18]}  Ke6 {[%clk 0:00:04]} 61. Bf4 {[%clk 0:00:18]}  Ng2 {[%clk 0:00:03]} 62. Kxh5 {[%clk 0:00:18]}  Kf5 {[%clk 0:00:03]} 63. Bg5 {[%clk 0:00:17]}  Ne1 {[%clk 0:00:01]} 64. g4+ {[%clk 0:00:15]}  Ke6 {[%clk 0:00:02]} 65. Kg6 {[%clk 0:00:14]}  Nf3 {[%clk 0:00:02]} 66. Bf4 {[%clk 0:00:13]}  Nxh4+ {[%clk 0:00:02]} 67. Kh5 {[%clk 0:00:10]}  Nf3 {[%clk 0:00:03]} 68. Be3 {[%clk 0:00:04]}  Kf7 {[%clk 0:00:03]} 1/2-1/2


[Site "https://www.chess.com"]

[Event "Titled Tuesday Blitz April 4 Early 2023"]
[White "Novikov, Evgenij"]
[Black "Goltsev, Dmitry"]
[WhiteFideId "4125380"]
[BlackFideId "24176710"]
[WhiteElo "2242"]
[BlackElo "2336"]
[Result "1/2-1/2"]
[Round "03"]
[TimeControl "180+2"]
[Date "2023.04.04"]
[WhiteClock "0:00:03"]
[BlackClock "0:00:22"]

1. d4 {[%clk 0:02:58]}  Nf6 {[%clk 0:03:00]} 2. Nf3 {[%clk 0:02:58]}  e6 {[%clk 0:03:00]} 3. c4 {[%clk 0:02:57]}  b6 {[%clk 0:03:01]} 4. g3 {[%clk 0:02:56]}  Ba6 {[%clk 0:03:01]} 5. Nbd2 {[%clk 0:02:54]}  Bb4 {[%clk 0:02:58]} 6. Qc2 {[%clk 0:02:55]}  O-O {[%clk 0:02:52]} 7. a3 {[%clk 0:02:48]}  Be7 {[%clk 0:02:48]} 8. Bg2 {[%clk 0:02:47]}  d5 {[%clk 0:02:42]} 9. O-O {[%clk 0:02:44]}  Nbd7 {[%clk 0:02:35]} 10. Re1 {[%clk 0:02:22]}  c5 {[%clk 0:02:29]} 11. cxd5 {[%clk 0:02:17]}  exd5 {[%clk 0:02:23]} 12. dxc5 {[%clk 0:02:06]}  Nxc5 {[%clk 0:02:19]} 13. b4 {[%clk 0:02:03]}  Nce4 {[%clk 0:02:16]} 14. Bb2 {[%clk 0:02:02]}  Rc8 {[%clk 0:02:16]} 15. Qa4 {[%clk 0:01:58]}  Bb7 {[%clk 0:01:34]} 16. Qxa7 {[%clk 0:01:50]}  Qd7 {[%clk 0:01:14]} 17. Ne5 {[%clk 0:01:38]}  Qc7 {[%clk 0:00:54]} 18. Rac1 {[%clk 0:01:33]}  Qb8 {[%clk 0:00:47]} 19. Qxb8 {[%clk 0:01:29]}  Rxb8 {[%clk 0:00:48]} 20. Nxe4 {[%clk 0:01:22]}  Nxe4 {[%clk 0:00:48]} 21. Nd7 {[%clk 0:01:19]}  Rbd8 {[%clk 0:00:36]} 22. Nxf8 {[%clk 0:01:19]}  Kxf8 {[%clk 0:00:37]} 23. Rc7 {[%clk 0:01:15]}  Ba6 {[%clk 0:00:37]} 24. Bxg7+ {[%clk 0:01:14]}  Kxg7 {[%clk 0:00:33]} 25. Rxe7 {[%clk 0:01:14]}  Nc3 {[%clk 0:00:34]} 26. Bf3 {[%clk 0:01:08]}  d4 {[%clk 0:00:33]} 27. Ra7 {[%clk 0:01:06]}  Bc4 {[%clk 0:00:33]} 28. a4 {[%clk 0:01:02]}  Re8 {[%clk 0:00:33]} 29. Rc1 {[%clk 0:00:29]}  Bxe2 {[%clk 0:00:32]} 30. Rxc3 {[%clk 0:00:25]}  dxc3 {[%clk 0:00:31]} 31. Bxe2 {[%clk 0:00:25]}  Rxe2 {[%clk 0:00:22]} 32. Rc7 {[%clk 0:00:24]}  Re4 {[%clk 0:00:16]} 33. a5 {[%clk 0:00:20]}  b5 {[%clk 0:00:16]} 34. Rxc3 {[%clk 0:00:19]}  Rxb4 {[%clk 0:00:16]} 35. Rc5 {[%clk 0:00:15]}  Rb1+ {[%clk 0:00:16]} 36. Kg2 {[%clk 0:00:16]}  b4 {[%clk 0:00:17]} 37. a6 {[%clk 0:00:15]}  b3 {[%clk 0:00:17]} 38. Rb5 {[%clk 0:00:12]}  b2 {[%clk 0:00:16]} 39. a7 {[%clk 0:00:11]}  Ra1 {[%clk 0:00:17]} 40. Rxb2 {[%clk 0:00:11]}  Rxa7 {[%clk 0:00:17]} 41. h4 {[%clk 0:00:12]}  Ra6 {[%clk 0:00:18]} 42. Rb4 {[%clk 0:00:12]}  Ra3 {[%clk 0:00:18]} 43. g4 {[%clk 0:00:12]}  Rc3 {[%clk 0:00:18]} 44. f3 {[%clk 0:00:12]}  Rd3 {[%clk 0:00:18]} 45. Kg3 {[%clk 0:00:12]}  Rd6 {[%clk 0:00:18]} 46. Re4 {[%clk 0:00:12]}  Rc6 {[%clk 0:00:18]} 47. g5 {[%clk 0:00:12]}  Rc1 {[%clk 0:00:18]} 48. Kg4 {[%clk 0:00:11]}  Rg1+ {[%clk 0:00:18]} 49. Kf5 {[%clk 0:00:11]}  Rg3 {[%clk 0:00:17]} 50. Rf4 {[%clk 0:00:11]}  Rh3 {[%clk 0:00:17]} 51. Kg4 {[%clk 0:00:10]}  Rh1 {[%clk 0:00:18]} 52. Kg3 {[%clk 0:00:09]}  Kg6 {[%clk 0:00:18]} 53. Rf6+ {[%clk 0:00:09]}  Kg7 {[%clk 0:00:18]} 54. Rh6 {[%clk 0:00:09]}  Rg1+ {[%clk 0:00:17]} 55. Kf4 {[%clk 0:00:09]}  Ra1 {[%clk 0:00:16]} 56. Kg4 {[%clk 0:00:09]}  Ra4+ {[%clk 0:00:16]} 57. f4 {[%clk 0:00:09]}  Ra1 {[%clk 0:00:17]} 58. f5 {[%clk 0:00:07]}  Ra4+ {[%clk 0:00:17]} 59. Kh5 {[%clk 0:00:07]}  Rf4 {[%clk 0:00:18]} 60. Rf6 {[%clk 0:00:04]}  Kg8 {[%clk 0:00:18]} 61. Rd6 {[%clk 0:00:02]}  Rxf5 {[%clk 0:00:18]} 62. Kg4 {[%clk 0:00:03]}  Ra5 {[%clk 0:00:18]} 63. Rd4 {[%clk 0:00:03]}  Kg7 {[%clk 0:00:19]} 64. h5 {[%clk 0:00:03]}  Ra1 {[%clk 0:00:19]} 65. h6+ {[%clk 0:00:03]}  Kf8 {[%clk 0:00:19]} 66. Rd8+ {[%clk 0:00:03]}  Ke7 {[%clk 0:00:20]} 67. Rh8 {[%clk 0:00:03]}  Rg1+ {[%clk 0:00:20]} 68. Kf5 {[%clk 0:00:04]}  Rf1+ {[%clk 0:00:21]} 69. Kg4 {[%clk 0:00:04]}  Rg1+ {[%clk 0:00:21]} 70. Kf4 {[%clk 0:00:04]}  Rf1+ {[%clk 0:00:22]} 71. Kg3 {[%clk 0:00:05]}  Rg1+ {[%clk 0:00:22]} 72. Kh4 {[%clk 0:00:03]}  Rh1+ {[%clk 0:00:21]} 73. Kg4 {[%clk 0:00:03]}  Rg1+ {[%clk 0:00:22]} 1/2-1/2


[Site "https://www.chess.com"]

[Event "Titled Tuesday Blitz April 4 Early 2023"]
[White "Pranav Anand"]
[Black "Petukhov, Dmitry"]
[WhiteFideId "46626786"]
[BlackFideId "4142748"]
[WhiteElo "2389"]
[BlackElo "2311"]
[Result "1-0"]
[Round "03"]
[TimeControl "180+2"]
[Date "2023.04.04"]
[WhiteClock "0:00:18"]
[BlackClock "0:00:08"]

1. d4 {[%clk 0:03:00]}  Nf6 {[%clk 0:02:58]} 2. c4 {[%clk 0:03:01]}  g6 {[%clk 0:02:56]} 3. Nc3 {[%clk 0:03:01]}  d5 {[%clk 0:02:57]} 4. cxd5 {[%clk 0:03:00]}  Nxd5 {[%clk 0:02:57]} 5. e4 {[%clk 0:03:00]}  Nxc3 {[%clk 0:02:58]} 6. bxc3 {[%clk 0:03:01]}  Bg7 {[%clk 0:02:57]} 7. Qa4+ {[%clk 0:03:01]}  Bd7 {[%clk 0:02:54]} 8. Qa3 {[%clk 0:02:54]}  O-O {[%clk 0:02:48]} 9. Nf3 {[%clk 0:02:54]}  b6 {[%clk 0:02:43]} 10. Be2 {[%clk 0:02:53]}  c5 {[%clk 0:02:40]} 11. h3 {[%clk 0:02:41]}  Nc6 {[%clk 0:02:40]} 12. e5 {[%clk 0:02:31]}  cxd4 {[%clk 0:02:36]} 13. cxd4 {[%clk 0:02:32]}  e6 {[%clk 0:02:32]} 14. O-O {[%clk 0:02:32]}  Ne7 {[%clk 0:02:25]} 15. Bg5 {[%clk 0:02:31]}  Re8 {[%clk 0:02:22]} 16. Rac1 {[%clk 0:02:26]}  h6 {[%clk 0:02:22]} 17. Bh4 {[%clk 0:02:09]}  g5 {[%clk 0:02:19]} 18. Nxg5 {[%clk 0:01:58]}  hxg5 {[%clk 0:02:19]} 19. Bxg5 {[%clk 0:01:59]}  Rc8 {[%clk 0:02:10]} 20. h4 {[%clk 0:01:55]}  Bc6 {[%clk 0:02:05]} 21. Rcd1 {[%clk 0:01:49]}  Qd5 {[%clk 0:01:55]} 22. Bf3 {[%clk 0:01:50]}  Qd7 {[%clk 0:01:46]} 23. Bg4 {[%clk 0:01:50]}  Nf5 {[%clk 0:01:37]} 24. h5 {[%clk 0:01:45]}  Bd5 {[%clk 0:01:28]} 25. Rfe1 {[%clk 0:01:24]}  Rc2 {[%clk 0:01:15]} 26. Bxf5 {[%clk 0:01:19]}  exf5 {[%clk 0:01:14]} 27. h6 {[%clk 0:01:18]}  Bf8 {[%clk 0:01:07]} 28. Qh3 {[%clk 0:01:16]}  Kh7 {[%clk 0:01:02]} 29. Re3 {[%clk 0:01:12]}  Rec8 {[%clk 0:00:54]} 30. Rg3 {[%clk 0:01:10]}  R2c7 {[%clk 0:00:44]} 31. f4 {[%clk 0:00:49]}  Rc2 {[%clk 0:00:36]} 32. Bf6 {[%clk 0:00:47]}  R8c3 {[%clk 0:00:28]} 33. Rxc3 {[%clk 0:00:43]}  Rxg2+ {[%clk 0:00:28]} 34. Qxg2 {[%clk 0:00:37]}  Bxg2 {[%clk 0:00:29]} 35. Kxg2 {[%clk 0:00:38]}  Qd5+ {[%clk 0:00:24]} 36. Kg3 {[%clk 0:00:39]}  Bxh6 {[%clk 0:00:20]} 37. Re3 {[%clk 0:00:36]}  Qxa2 {[%clk 0:00:20]} 38. d5 {[%clk 0:00:35]}  Qc2 {[%clk 0:00:18]} 39. Rh1 {[%clk 0:00:29]}  Kg6 {[%clk 0:00:18]} 40. d6 {[%clk 0:00:29]}  Qd2 {[%clk 0:00:18]} 41. Rf3 {[%clk 0:00:29]}  b5 {[%clk 0:00:17]} 42. Rh2 {[%clk 0:00:25]}  Qd4 {[%clk 0:00:15]} 43. Be7 {[%clk 0:00:19]}  b4 {[%clk 0:00:15]} 44. Rc2 {[%clk 0:00:16]}  Qg1+ {[%clk 0:00:13]} 45. Rg2 {[%clk 0:00:17]}  Qe1+ {[%clk 0:00:13]} 46. Kh2+ {[%clk 0:00:17]}  Kh7 {[%clk 0:00:14]} 47. Rh3 {[%clk 0:00:18]}  Qc1 {[%clk 0:00:12]} 48. Bg5 {[%clk 0:00:19]}  Kg7 {[%clk 0:00:08]} 49. Bxh6+ {[%clk 0:00:18]} 1-0


[Site "https://www.chess.com"]